Workbook

Sheet Helfer
A1: Bahnenbetreuung Jedermannturnier
A2: Bahn | B2: BGSV Mitglied
A3: 1 | B3: Oliver Lindemann
A4: 2 | B4: Christof Herzberger
A5: 3 | B5: Michael Sattler
A6: 4 | B6: Norbert Jakob
A7: 5 | B7: Franz Krumay
A8: 6 | B8: Dennis Koch
A9: 7 | B9: Stephan Preißmann / Sven Wachtel
A10: 8 | B10: Harald Kantor
A11: 9 | B11: Robert Kantor
A12: 10 | B12: Gerd Paul
A13: 11 | B13: Rolf Koch
A14: 12 | B14: Ralf Herzog
A15: 13 | B15: Rolf Frank
A16: 14 | B16: Philipp Herzberger
A17: 15 | B17: Luca Hudert
A18: 16 | B18: David Hagemeyer
A19: 17 | B19: Eileen Herzberger
A20: 18 | B20: Franziska Hagemeyer

Sheet Ergebnisliste

Sheet Teilnehmer
F2: Jedermannturnier 2019
B3: Startnr. | C3: Rang | D3: Name | E3: Vorname | F3: Kat | G3: Rd. 1 | H3: Rd. 2 | I3: Gesamt | J3: Asse 1 | K3: Asse 2 | L3: Ges | O3: Rang Asse
F4: Herren
B5: 101 | C5: =IF(I5="","",RANK(I5,$I$5:$I$20,2)) -> 1 | D5: Philippus | E5: Achim | F5: H | G5: 40 | H5: 38 | I5: =G5+H5 -> 78 | J5: 5 | K5: 4 | L5: =J5+K5 -> 9 | O5: =RANK(L5,L$4:L$34,0) -> 2
B6: 102 | C6: =IF(I6="","",RANK(I6,$I$5:$I$20,2)) -> 2 | D6: Bien | E6: Martin | F6: H | G6: 40 | H6: 44 | I6: =G6+H6 -> 84 | J6: 4 | K6: 2 | L6: =J6+K6 -> 6 | O6: =RANK(L6,L$4:L$34,0) -> 9
B7: 103 | C7: =IF(I7="","",RANK(I7,$I$5:$I$20,2)) -> 3 | D7: Lotz | E7: Peter | F7: H | G7: 45 | H7: 40 | I7: =G7+H7 -> 85 | J7: 3 | K7: 4 | L7: =J7+K7 -> 7 | O7: =RANK(L7,L$4:L$34,0) -> 5
B8: 104 | C8: =IF(I8="","",RANK(I8,$I$5:$I$20,2)) -> 4 | D8: Hudert | E8: Marcus | F8: H | G8: 41 | H8: 47 | I8: =G8+H8 -> 88 | J8: 4 | K8: 3 | L8: =J8+K8 -> 7 | O8: =RANK(L8,L$4:L$34,0) -> 5
B9: 105 | C9: =IF(I9="","",RANK(I9,$I$5:$I$20,2)) -> 5 | D9: Bischoff | E9: Andreas | F9: H | G9: 43 | H9: 47 | I9: =G9+H9 -> 90 | J9: 3 | K9: 2 | L9: =J9+K9 -> 5 | O9: =RANK(L9,L$4:L$34,0) -> 12
B10: 106 | C10: =IF(I10="","",RANK(I10,$I$5:$I$20,2)) -> 6 | D10: Thomas | E10: Stefan | F10: H | G10: 45 | H10: 46 | I10: =G10+H10 -> 91 | J10: 4 | K10: 6 | L10: =J10+K10 -> 10 | O10: =RANK(L10,L$4:L$34,0) -> 1
B11: 107 | C11: =IF(I11="","",RANK(I11,$I$5:$I$20,2)) -> 7 | D11: Kremer | E11: Manfred | F11: H | G11: 46 | H11: 47 | I11: =G11+H11 -> 93 | J11: 3 | K11: 3 | L11: =J11+K11 -> 6 | O11: =RANK(L11,L$4:L$34,0) -> 9
B12: 108 | C12: =IF(I12="","",RANK(I12,$I$5:$I$20,2)) -> 8 | D12: Hudert | E12: Leon | F12: H | G12: 51 | H12: 44 | I12: =G12+H12 -> 95 | J12: 3 | K12: 4 | L12: =J12+K12 -> 7 | O12: =RANK(L12,L$4:L$34,0) -> 5
B13: 109 | C13: =IF(I13="","",RANK(I13,$I$5:$I$20,2)) -> 9 | D13: Weber | E13: Frank | F13: H | G13: 51 | H13: 46 | I13: =G13+H13 -> 97 | J13: 3 | K13: 2 | L13: =J13+K13 -> 5 | O13: =RANK(L13,L$4:L$34,0) -> 12
B14: 110 | C14: =IF(I14="","",RANK(I14,$I$5:$I$20,2)) -> 10 | D14: Teischad | E14: Stefan | F14: H | G14: 48 | H14: 53 | I14: =G14+H14 -> 101 | J14: 2 | K14: 3 | L14: =J14+K14 -> 5 | O14: =RANK(L14,L$4:L$34,0) -> 12
B15: 111 | C15: =IF(I15="","",RANK(I15,$I$5:$I$20,2)) -> 11 | D15: Geisler | E15: Knut | F15: H | G15: 60 | H15: 43 | I15: =G15+H15 -> 103 | J15: 1 | K15: 4 | L15: =J15+K15 -> 5 | O15: =RANK(L15,L$4:L$34,0) -> 12
B16: 112 | C16: =IF(I16="","",RANK(I16,$I$5:$I$20,2)) -> 12 | D16: Reimann | E16: Thomas | F16: H | G16: 53 | H16: 58 | I16: =G16+H16 -> 111 | J16: 3 | K16: 1 | L16: =J16+K16 -> 4 | O16: =RANK(L16,L$4:L$34,0) -> 18
B17: 113 | C17: =IF(I17="","",RANK(I17,$I$5:$I$20,2)) -> 12 | D17: Kleemann | E17: Petrick | F17: H | G17: 56 | H17: 55 | I17: =G17+H17 -> 111 | J17: 2 | K17: 3 | L17: =J17+K17 -> 5 | O17: =RANK(L17,L$4:L$34,0) -> 12
B18: 114 | C18: =IF(I18="","",RANK(I18,$I$5:$I$20,2)) -> 14 | D18: Ding | E18: Gary | F18: H | G18: 66 | H18: 54 | I18: =G18+H18 -> 120 | J18: 1 | K18: 2 | L18: =J18+K18 -> 3 | O18: =RANK(L18,L$4:L$34,0) -> 22
B19: 115 | C19: =IF(I19="","",RANK(I19,$I$5:$I$20,2)) -> 15 | D19: Günther | E19: Felix | F19: H | G19: 61 | H19: 62 | I19: =G19+H19 -> 123 | J19: 3 | K19: 0 | L19: =J19+K19 -> 3 | O19: =RANK(L19,L$4:L$34,0) -> 22
B20: 116 | C20: =IF(I20="","",RANK(I20,$I$5:$I$20,2)) -> 16 | D20: van Ryßen | E20: Artur | F20: H | G20: 43 | H20: 126 | I20: =G20+H20 -> 169 | J20: 2 | K20: 0 | L20: =J20+K20 -> 2 | O20: =RANK(L20,L$4:L$34,0) -> 24
C21: =IF(I21="","",RANK(I21,$I$5:$I$20,2)) -> 
F22: Damen
B23: 201 | C23: =IF(I23="","",RANK(I23,$I$23:$I$30,2)) -> 1 | D23: Erle | E23: Laura | F23: D | G23: 41 | H23: 44 | I23: =G23+H23 -> 85 | J23: 6 | K23: 3 | L23: =J23+K23 -> 9 | O23: =RANK(L23,L$4:L$34,0) -> 2
B24: 202 | C24: =IF(I24="","",RANK(I24,$I$23:$I$30,2)) -> 2 | D24: Walther | E24: Bianca | F24: D | G24: 45 | H24: 54 | I24: =G24+H24 -> 99 | J24: 5 | K24: 4 | L24: =J24+K24 -> 9 | O24: =RANK(L24,L$4:L$34,0) -> 2
B25: 203 | C25: =IF(I25="","",RANK(I25,$I$23:$I$30,2)) -> 3 | D25: Bien | E25: Angelika | F25: D | G25: 51 | H25: 50 | I25: =G25+H25 -> 101 | J25: 3 | K25: 4 | L25: =J25+K25 -> 7 | O25: =RANK(L25,L$4:L$34,0) -> 5
B26: 204 | C26: =IF(I26="","",RANK(I26,$I$23:$I$30,2)) -> 4 | D26: Bischoff | E26: Nicole | F26: D | G26: 53 | H26: 53 | I26: =G26+H26 -> 106 | J26: 1 | K26: 5 | L26: =J26+K26 -> 6 | O26: =RANK(L26,L$4:L$34,0) -> 9
B27: 205 | C27: =IF(I27="","",RANK(I27,$I$23:$I$30,2)) -> 5 | D27: Mohr | E27: Colette | F27: D | G27: 59 | H27: 57 | I27: =G27+H27 -> 116 | J27: 3 | K27: 1 | L27: =J27+K27 -> 4 | O27: =RANK(L27,L$4:L$34,0) -> 18
B28: 206 | C28: =IF(I28="","",RANK(I28,$I$23:$I$30,2)) -> 6 | D28: Mohr | E28: Aline | F28: D | G28: 54 | H28: 64 | I28: =G28+H28 -> 118 | J28: 2 | K28: 2 | L28: =J28+K28 -> 4 | O28: =RANK(L28,L$4:L$34,0) -> 18
B29: 207 | C29: =IF(I29="","",RANK(I29,$I$23:$I$30,2)) -> 7 | D29: Kleemann | E29: Kerstin | F29: D | G29: 67 | H29: 56 | I29: =G29+H29 -> 123 | J29: 2 | K29: 3 | L29: =J29+K29 -> 5 | O29: =RANK(L29,L$4:L$34,0) -> 12
B30: 208 | C30: =IF(I30="","",RANK(I30,$I$23:$I$30,2)) -> 8 | D30: Ding | E30: Jing | F30: D | G30: 74 | H30: 82 | I30: =G30+H30 -> 156 | J30: 0 | K30: 2 | L30: =J30+K30 -> 2 | O30: =RANK(L30,L$4:L$34,0) -> 24
C31: =IF(I31="","",RANK(I31,$I$5:$I$20,2)) -> 
C32: =IF(I32="","",RANK(I32,$I$5:$I$20,2)) ->  | F32: Schüler
B33: 401 | C33: =IF(I33="","",RANK(I33,$I$33:$I$34,2)) -> 1 | D33: Thomas | E33: Ben | F33: Sch | G33: 59 | H33: 48 | I33: =G33+H33 -> 107 | J33: 1 | K33: 3 | L33: =J33+K33 -> 4 | O33: =RANK(L33,L$4:L$34,0) -> 18
B34: 402 | C34: =IF(I34="","",RANK(I34,$I$33:$I$34,2)) -> 2 | D34: Ding | E34: Luis | F34: Sch | G34: 85 | H34: 73 | I34: =G34+H34 -> 158 | J34: 1 | K34: 0 | L34: =J34+K34 -> 1 | O34: =RANK(L34,L$4:L$34,0) -> 26

Sheet Herren
F2: Jedermannturnier 2019
B3: Startnr. | C3: Rang | D3: Name | E3: Vorname | F3: Kat | G3: Rd. 1 | H3: Rd. 2 | I3: Gesamt | J3: Asse 1 | K3: Asse 2 | L3: Ges
C4: Herren
B6: 107 | C6: =IF(I6="","",RANK(I6,$I$6:$I$21,2)) -> 1 | D6: Philippus | E6: Achim | F6: H | G6: 40 | H6: 38 | I6: =G6+H6 -> 78 | J6: 5 | K6: 4 | L6: =J6+K6 -> 9
B7: 101 | C7: 2 | D7: Bien | E7: Martin | F7: H | G7: 40 | H7: 44 | I7: 84 | J7: 4 | K7: 2 | L7: 6
B8: 113 | C8: 3 | D8: Lotz | E8: Peter | F8: H | G8: 45 | H8: 40 | I8: 85 | J8: 3 | K8: 4 | L8: 7
B9: 105 | C9: 4 | D9: Hudert | E9: Marcus | F9: H | G9: 41 | H9: 47 | I9: 88 | J9: 4 | K9: 3 | L9: 7
B10: 114 | C10: 5 | D10: Bischoff | E10: Andreas | F10: H | G10: 43 | H10: 47 | I10: 90 | J10: 3 | K10: 2 | L10: 5
B11: 111 | C11: 6 | D11: Thomas | E11: Stefan | F11: H | G11: 45 | H11: 46 | I11: 91 | J11: 4 | K11: 6 | L11: 10
B12: 103 | C12: 7 | D12: Kremer | E12: Manfred | F12: H | G12: 46 | H12: 47 | I12: 93 | J12: 3 | K12: 3 | L12: 6
B13: 106 | C13: 8 | D13: Hudert | E13: Leon | F13: H | G13: 51 | H13: 44 | I13: 95 | J13: 3 | K13: 4 | L13: 7
B14: 110 | C14: 9 | D14: Weber | E14: Frank | F14: H | G14: 51 | H14: 46 | I14: 97 | J14: 3 | K14: 2 | L14: 5
B15: 102 | C15: 10 | D15: Teischad | E15: Stefan | F15: H | G15: 48 | H15: 53 | I15: 101 | J15: 2 | K15: 3 | L15: 5
B16: 109 | C16: 11 | D16: Geisler | E16: Knut | F16: H | G16: 60 | H16: 43 | I16: 103 | J16: 1 | K16: 4 | L16: 5
B17: 108 | C17: 12 | D17: Kleemann | E17: Petrick | F17: H | G17: 56 | H17: 55 | I17: 111 | J17: 2 | K17: 3 | L17: 5
B18: 104 | C18: 12 | D18: Reimann | E18: Thomas | F18: H | G18: 53 | H18: 58 | I18: 111 | J18: 3 | K18: 1 | L18: 4
B19: 116 | C19: 14 | D19: Ding | E19: Gary | F19: H | G19: 66 | H19: 54 | I19: 120 | J19: 1 | K19: 2 | L19: 3
B20: 115 | C20: 15 | D20: Günther | E20: Felix | F20: H | G20: 61 | H20: 62 | I20: 123 | J20: 3 | K20: 0 | L20: 3
B21: 112 | C21: 16 | D21: van Ryßen | E21: Artur | F21: H | G21: 43 | H21: 126 | I21: 169 | J21: 2 | K21: 0 | L21: 2

Sheet Damen
F2: Jedermannturnier 2019
B3: Startnr. | C3: Rang | D3: Name | E3: Vorname | F3: Kat | G3: Rd. 1 | H3: Rd. 2 | I3: Gesamt | J3: Asse 1 | K3: Asse 2 | L3: Ges
C4: Damen
B6: 203 | C6: =IF(I6="","",RANK(I6,$I$6:$I$13,2)) -> 1 | D6: Erle | E6: Laura | F6: D | G6: 41 | H6: 44 | I6: =G6+H6 -> 85 | J6: 6 | K6: 3 | L6: =J6+K6 -> 9
B7: 205 | C7: 2 | D7: Walther | E7: Bianca | F7: D | G7: 45 | H7: 54 | I7: 99 | J7: 5 | K7: 4 | L7: 9
B8: 202 | C8: 3 | D8: Bien | E8: Angelika | F8: D | G8: 51 | H8: 50 | I8: 101 | J8: 3 | K8: 4 | L8: 7
B9: 206 | C9: 4 | D9: Bischoff | E9: Nicole | F9: D | G9: 53 | H9: 53 | I9: 106 | J9: 1 | K9: 5 | L9: 6
B10: 201 | C10: 5 | D10: Mohr | E10: Colette | F10: D | G10: 59 | H10: 57 | I10: 116 | J10: 3 | K10: 1 | L10: 4
B11: 208 | C11: 6 | D11: Mohr | E11: Aline | F11: D | G11: 54 | H11: 64 | I11: 118 | J11: 2 | K11: 2 | L11: 4
B12: 204 | C12: 7 | D12: Kleemann | E12: Kerstin | F12: D | G12: 67 | H12: 56 | I12: 123 | J12: 2 | K12: 3 | L12: 5
B13: 207 | C13: 8 | D13: Ding | E13: Jing | F13: D | G13: 74 | H13: 82 | I13: 156 | J13: 0 | K13: 2 | L13: 2

Sheet Schüler m
F2: Jedermannturnier 2019
B3: Startnr. | C3: Rang | D3: Name | E3: Vorname | F3: Kat | G3: Rd. 1 | H3: Rd. 2 | I3: Gesamt | J3: Asse 1 | K3: Asse 2 | L3: Ges
C4: Schüler männlich
B6: 401 | C6: =IF(I6="","",RANK(I6,$I$6:$I$7,2)) -> 1 | D6: Thomas | E6: Ben | F6: Schm | G6: 59 | H6: 48 | I6: =G6+H6 -> 107 | J6: 1 | K6: 3 | L6: =J6+K6 -> 4
B7: 402 | C7: =IF(I7="","",RANK(I7,$I$6:$I$7,2)) -> 2 | D7: Ding | E7: Luis | F7: Schm | G7: 85 | H7: 73 | I7: =G7+H7 -> 158 | J7: 1 | K7: 0 | L7: =J7+K7 -> 1

Sheet Startliste_1
E2: Startliste 1. Runde
A4: Bahn | B4: Start gruppe | C4: Start Nr. | D4: Name | E4: Vorname | F4: Kat | H4: Start Nr. | I4: Name | J4: Vorname | K4: Kat | M4: Start Nr. | N4: Name | O4: Vorname | P4: Kat
A5: 1 | B5: 1 | C5: 101 | D5: =VLOOKUP(C5,Teilnehmer!$B$5:$F$34,3,FALSE) -> Philippus | E5: =VLOOKUP(C5,Teilnehmer!$B$5:$F$34,4,FALSE) -> Achim | F5: =VLOOKUP(C5,Teilnehmer!$B$5:$F$34,5,FALSE) -> H | H5: 102 | I5: =VLOOKUP(H5,Teilnehmer!$B$5:$F$34,3,FALSE) -> Bien | J5: =VLOOKUP(H5,Teilnehmer!$B$5:$F$34,4,FALSE) -> Martin | K5: =VLOOKUP(H5,Teilnehmer!$B$5:$F$34,5,FALSE) -> H | M5: 103 | N5: =VLOOKUP(M5,Teilnehmer!$B$5:$F$34,3,FALSE) -> Lotz | O5: =VLOOKUP(M5,Teilnehmer!$B$5:$F$34,4,FALSE) -> Peter | P5: =VLOOKUP(M5,Teilnehmer!$B$5:$F$34,5,FALSE) -> H
A6: 2 | B6: 2 | C6: 203 | D6: =VLOOKUP(C6,Teilnehmer!$B$5:$F$34,3,FALSE) -> Bien | E6: =VLOOKUP(C6,Teilnehmer!$B$5:$F$34,4,FALSE) -> Angelika | F6: =VLOOKUP(C6,Teilnehmer!$B$5:$F$34,5,FALSE) -> D | H6: 105 | I6: =VLOOKUP(H6,Teilnehmer!$B$5:$F$34,3,FALSE) -> Bischoff | J6: =VLOOKUP(H6,Teilnehmer!$B$5:$F$34,4,FALSE) -> Andreas | K6: =VLOOKUP(H6,Teilnehmer!$B$5:$F$34,5,FALSE) -> H | M6: 106 | N6: =VLOOKUP(M6,Teilnehmer!$B$5:$F$34,3,FALSE) -> Thomas | O6: =VLOOKUP(M6,Teilnehmer!$B$5:$F$34,4,FALSE) -> Stefan | P6: =VLOOKUP(M6,Teilnehmer!$B$5:$F$34,5,FALSE) -> H
A7: 3 | B7: 3 | C7: 107 | D7: =VLOOKUP(C7,Teilnehmer!$B$5:$F$34,3,FALSE) -> Kremer | E7: =VLOOKUP(C7,Teilnehmer!$B$5:$F$34,4,FALSE) -> Manfred | F7: =VLOOKUP(C7,Teilnehmer!$B$5:$F$34,5,FALSE) -> H | H7: 108 | I7: =VLOOKUP(H7,Teilnehmer!$B$5:$F$34,3,FALSE) -> Hudert | J7: =VLOOKUP(H7,Teilnehmer!$B$5:$F$34,4,FALSE) -> Leon | K7: =VLOOKUP(H7,Teilnehmer!$B$5:$F$34,5,FALSE) -> H | M7: 204 | N7: =VLOOKUP(M7,Teilnehmer!$B$5:$F$34,3,FALSE) -> Bischoff | O7: =VLOOKUP(M7,Teilnehmer!$B$5:$F$34,4,FALSE) -> Nicole | P7: =VLOOKUP(M7,Teilnehmer!$B$5:$F$34,5,FALSE) -> D
A8: 4 | B8: 4 | C8: 201 | D8: =VLOOKUP(C8,Teilnehmer!$B$5:$F$34,3,FALSE) -> Erle | E8: =VLOOKUP(C8,Teilnehmer!$B$5:$F$34,4,FALSE) -> Laura | F8: =VLOOKUP(C8,Teilnehmer!$B$5:$F$34,5,FALSE) -> D | H8: 202 | I8: =VLOOKUP(H8,Teilnehmer!$B$5:$F$34,3,FALSE) -> Walther | J8: =VLOOKUP(H8,Teilnehmer!$B$5:$F$34,4,FALSE) -> Bianca | K8: =VLOOKUP(H8,Teilnehmer!$B$5:$F$34,5,FALSE) -> D | M8: 104 | N8: =VLOOKUP(M8,Teilnehmer!$B$5:$F$34,3,FALSE) -> Hudert | O8: =VLOOKUP(M8,Teilnehmer!$B$5:$F$34,4,FALSE) -> Marcus | P8: =VLOOKUP(M8,Teilnehmer!$B$5:$F$34,5,FALSE) -> H
A9: 5 | B9: 5 | C9: 109 | D9: =VLOOKUP(C9,Teilnehmer!$B$5:$F$34,3,FALSE) -> Weber | E9: =VLOOKUP(C9,Teilnehmer!$B$5:$F$34,4,FALSE) -> Frank | F9: =VLOOKUP(C9,Teilnehmer!$B$5:$F$34,5,FALSE) -> H | H9: 110 | I9: =VLOOKUP(H9,Teilnehmer!$B$5:$F$34,3,FALSE) -> Teischad | J9: =VLOOKUP(H9,Teilnehmer!$B$5:$F$34,4,FALSE) -> Stefan | K9: =VLOOKUP(H9,Teilnehmer!$B$5:$F$34,5,FALSE) -> H | M9: 112 | N9: =VLOOKUP(M9,Teilnehmer!$B$5:$F$34,3,FALSE) -> Reimann | O9: =VLOOKUP(M9,Teilnehmer!$B$5:$F$34,4,FALSE) -> Thomas | P9: =VLOOKUP(M9,Teilnehmer!$B$5:$F$34,5,FALSE) -> H
A10: 6 | B10: 6 | C10: 111 | D10: =VLOOKUP(C10,Teilnehmer!$B$5:$F$34,3,FALSE) -> Geisler | E10: =VLOOKUP(C10,Teilnehmer!$B$5:$F$34,4,FALSE) -> Knut | F10: =VLOOKUP(C10,Teilnehmer!$B$5:$F$34,5,FALSE) -> H | H10: 401 | I10: =VLOOKUP(H10,Teilnehmer!$B$5:$F$34,3,FALSE) -> Thomas | J10: =VLOOKUP(H10,Teilnehmer!$B$5:$F$34,4,FALSE) -> Ben | K10: =VLOOKUP(H10,Teilnehmer!$B$5:$F$34,5,FALSE) -> Sch | M10: 114 | N10: =VLOOKUP(M10,Teilnehmer!$B$5:$F$34,3,FALSE) -> Ding | O10: =VLOOKUP(M10,Teilnehmer!$B$5:$F$34,4,FALSE) -> Gary | P10: =VLOOKUP(M10,Teilnehmer!$B$5:$F$34,5,FALSE) -> H
A11: 7 | B11: 7 | C11: 205 | D11: =VLOOKUP(C11,Teilnehmer!$B$5:$F$34,3,FALSE) -> Mohr | E11: =VLOOKUP(C11,Teilnehmer!$B$5:$F$34,4,FALSE) -> Colette | F11: =VLOOKUP(C11,Teilnehmer!$B$5:$F$34,5,FALSE) -> D | H11: 206 | I11: =VLOOKUP(H11,Teilnehmer!$B$5:$F$34,3,FALSE) -> Mohr | J11: =VLOOKUP(H11,Teilnehmer!$B$5:$F$34,4,FALSE) -> Aline | K11: =VLOOKUP(H11,Teilnehmer!$B$5:$F$34,5,FALSE) -> D | M11: 113 | N11: =VLOOKUP(M11,Teilnehmer!$B$5:$F$34,3,FALSE) -> Kleemann | O11: =VLOOKUP(M11,Teilnehmer!$B$5:$F$34,4,FALSE) -> Petrick | P11: =VLOOKUP(M11,Teilnehmer!$B$5:$F$34,5,FALSE) -> H
A12: 8 | B12: 8 | C12: 116 | D12: =VLOOKUP(C12,Teilnehmer!$B$5:$F$34,3,FALSE) -> van Ryßen | E12: =VLOOKUP(C12,Teilnehmer!$B$5:$F$34,4,FALSE) -> Artur | F12: =VLOOKUP(C12,Teilnehmer!$B$5:$F$34,5,FALSE) -> H | H12: 207 | I12: =VLOOKUP(H12,Teilnehmer!$B$5:$F$34,3,FALSE) -> Kleemann | J12: =VLOOKUP(H12,Teilnehmer!$B$5:$F$34,4,FALSE) -> Kerstin | K12: =VLOOKUP(H12,Teilnehmer!$B$5:$F$34,5,FALSE) -> D | M12: 402 | N12: =VLOOKUP(M12,Teilnehmer!$B$5:$F$34,3,FALSE) -> Ding | O12: =VLOOKUP(M12,Teilnehmer!$B$5:$F$34,4,FALSE) -> Luis | P12: =VLOOKUP(M12,Teilnehmer!$B$5:$F$34,5,FALSE) -> Sch
A13: 9 | B13: 9 | C13: 115 | D13: =VLOOKUP(C13,Teilnehmer!$B$5:$F$34,3,FALSE) -> Günther | E13: =VLOOKUP(C13,Teilnehmer!$B$5:$F$34,4,FALSE) -> Felix | F13: =VLOOKUP(C13,Teilnehmer!$B$5:$F$34,5,FALSE) -> H | H13: 208 | I13: =VLOOKUP(H13,Teilnehmer!$B$5:$F$34,3,FALSE) -> Ding | J13: =VLOOKUP(H13,Teilnehmer!$B$5:$F$34,4,FALSE) -> Jing | K13: =VLOOKUP(H13,Teilnehmer!$B$5:$F$34,5,FALSE) -> D | N13: =VLOOKUP(M13,Teilnehmer!$B$5:$F$34,3,FALSE) ->  | O13: =VLOOKUP(M13,Teilnehmer!$B$5:$F$34,4,FALSE) ->  | P13: =VLOOKUP(M13,Teilnehmer!$B$5:$F$34,5,FALSE) -> 
A14: 10 | B14: 10 | D14: =VLOOKUP(C14,Teilnehmer!$B$5:$F$34,3,FALSE) ->  | E14: =VLOOKUP(C14,Teilnehmer!$B$5:$F$34,4,FALSE) ->  | F14: =VLOOKUP(C14,Teilnehmer!$B$5:$F$34,5,FALSE) ->  | I14: =VLOOKUP(H14,Teilnehmer!$B$5:$F$34,3,FALSE) ->  | J14: =VLOOKUP(H14,Teilnehmer!$B$5:$F$34,4,FALSE) ->  | K14: =VLOOKUP(H14,Teilnehmer!$B$5:$F$34,5,FALSE) ->  | N14: =VLOOKUP(M14,Teilnehmer!$B$5:$F$34,3,FALSE) ->  | O14: =VLOOKUP(M14,Teilnehmer!$B$5:$F$34,4,FALSE) ->  | P14: =VLOOKUP(M14,Teilnehmer!$B$5:$F$34,5,FALSE) -> 
A15: 11 | B15: 11 | D15: =VLOOKUP(C15,Teilnehmer!$B$5:$F$34,3,FALSE) ->  | E15: =VLOOKUP(C15,Teilnehmer!$B$5:$F$34,4,FALSE) ->  | F15: =VLOOKUP(C15,Teilnehmer!$B$5:$F$34,5,FALSE) ->  | I15: =VLOOKUP(H15,Teilnehmer!$B$5:$F$34,3,FALSE) ->  | J15: =VLOOKUP(H15,Teilnehmer!$B$5:$F$34,4,FALSE) ->  | K15: =VLOOKUP(H15,Teilnehmer!$B$5:$F$34,5,FALSE) ->  | N15: =VLOOKUP(M15,Teilnehmer!$B$5:$F$34,3,FALSE) ->  | O15: =VLOOKUP(M15,Teilnehmer!$B$5:$F$34,4,FALSE) ->  | P15: =VLOOKUP(M15,Teilnehmer!$B$5:$F$34,5,FALSE) -> 
A16: 12 | B16: 12 | D16: =VLOOKUP(C16,Teilnehmer!$B$5:$F$34,3,FALSE) ->  | E16: =VLOOKUP(C16,Teilnehmer!$B$5:$F$34,4,FALSE) ->  | F16: =VLOOKUP(C16,Teilnehmer!$B$5:$F$34,5,FALSE) ->  | I16: =VLOOKUP(H16,Teilnehmer!$B$5:$F$34,3,FALSE) ->  | J16: =VLOOKUP(H16,Teilnehmer!$B$5:$F$34,4,FALSE) ->  | K16: =VLOOKUP(H16,Teilnehmer!$B$5:$F$34,5,FALSE) ->  | N16: =VLOOKUP(M16,Teilnehmer!$B$5:$F$34,3,FALSE) ->  | O16: =VLOOKUP(M16,Teilnehmer!$B$5:$F$34,4,FALSE) ->  | P16: =VLOOKUP(M16,Teilnehmer!$B$5:$F$34,5,FALSE) -> 
A17: 13 | B17: 13 | D17: =VLOOKUP(C17,Teilnehmer!$B$5:$F$34,3,FALSE) ->  | E17: =VLOOKUP(C17,Teilnehmer!$B$5:$F$34,4,FALSE) ->  | F17: =VLOOKUP(C17,Teilnehmer!$B$5:$F$34,5,FALSE) ->  | I17: =VLOOKUP(H17,Teilnehmer!$B$5:$F$34,3,FALSE) ->  | J17: =VLOOKUP(H17,Teilnehmer!$B$5:$F$34,4,FALSE) ->  | K17: =VLOOKUP(H17,Teilnehmer!$B$5:$F$34,5,FALSE) ->  | N17: =VLOOKUP(M17,Teilnehmer!$B$5:$F$34,3,FALSE) ->  | O17: =VLOOKUP(M17,Teilnehmer!$B$5:$F$34,4,FALSE) ->  | P17: =VLOOKUP(M17,Teilnehmer!$B$5:$F$34,5,FALSE) -> 
A18: 14 | B18: 14 | D18: =VLOOKUP(C18,Teilnehmer!$B$5:$F$34,3,FALSE) ->  | E18: =VLOOKUP(C18,Teilnehmer!$B$5:$F$34,4,FALSE) ->  | F18: =VLOOKUP(C18,Teilnehmer!$B$5:$F$34,5,FALSE) ->  | I18: =VLOOKUP(H18,Teilnehmer!$B$5:$F$34,3,FALSE) ->  | J18: =VLOOKUP(H18,Teilnehmer!$B$5:$F$34,4,FALSE) ->  | K18: =VLOOKUP(H18,Teilnehmer!$B$5:$F$34,5,FALSE) ->  | N18: =VLOOKUP(M18,Teilnehmer!$B$5:$F$34,3,FALSE) ->  | O18: =VLOOKUP(M18,Teilnehmer!$B$5:$F$34,4,FALSE) ->  | P18: =VLOOKUP(M18,Teilnehmer!$B$5:$F$34,5,FALSE) -> 
A19: 15 | B19: 15 | D19: =VLOOKUP(C19,Teilnehmer!$B$5:$F$34,3,FALSE) ->  | E19: =VLOOKUP(C19,Teilnehmer!$B$5:$F$34,4,FALSE) ->  | F19: =VLOOKUP(C19,Teilnehmer!$B$5:$F$34,5,FALSE) ->  | I19: =VLOOKUP(H19,Teilnehmer!$B$5:$F$34,3,FALSE) ->  | J19: =VLOOKUP(H19,Teilnehmer!$B$5:$F$34,4,FALSE) ->  | K19: =VLOOKUP(H19,Teilnehmer!$B$5:$F$34,5,FALSE) ->  | N19: =VLOOKUP(M19,Teilnehmer!$B$5:$F$34,3,FALSE) ->  | O19: =VLOOKUP(M19,Teilnehmer!$B$5:$F$34,4,FALSE) ->  | P19: =VLOOKUP(M19,Teilnehmer!$B$5:$F$34,5,FALSE) -> 
A20: 16 | B20: 16 | D20: =VLOOKUP(C20,Teilnehmer!$B$5:$F$34,3,FALSE) ->  | E20: =VLOOKUP(C20,Teilnehmer!$B$5:$F$34,4,FALSE) ->  | F20: =VLOOKUP(C20,Teilnehmer!$B$5:$F$34,5,FALSE) ->  | I20: =VLOOKUP(H20,Teilnehmer!$B$5:$F$34,3,FALSE) ->  | J20: =VLOOKUP(H20,Teilnehmer!$B$5:$F$34,4,FALSE) ->  | K20: =VLOOKUP(H20,Teilnehmer!$B$5:$F$34,5,FALSE) ->  | N20: =VLOOKUP(M20,Teilnehmer!$B$5:$F$34,3,FALSE) ->  | O20: =VLOOKUP(M20,Teilnehmer!$B$5:$F$34,4,FALSE) ->  | P20: =VLOOKUP(M20,Teilnehmer!$B$5:$F$34,5,FALSE) -> 
A21: 17 | B21: 17 | D21: =VLOOKUP(C21,Teilnehmer!$B$5:$F$34,3,FALSE) ->  | E21: =VLOOKUP(C21,Teilnehmer!$B$5:$F$34,4,FALSE) ->  | F21: =VLOOKUP(C21,Teilnehmer!$B$5:$F$34,5,FALSE) ->  | I21: =VLOOKUP(H21,Teilnehmer!$B$5:$F$34,3,FALSE) ->  | J21: =VLOOKUP(H21,Teilnehmer!$B$5:$F$34,4,FALSE) ->  | K21: =VLOOKUP(H21,Teilnehmer!$B$5:$F$34,5,FALSE) ->  | N21: =VLOOKUP(M21,Teilnehmer!$B$5:$F$34,3,FALSE) ->  | O21: =VLOOKUP(M21,Teilnehmer!$B$5:$F$34,4,FALSE) ->  | P21: =VLOOKUP(M21,Teilnehmer!$B$5:$F$34,5,FALSE) -> 
A22: 18 | B22: 18 | D22: =VLOOKUP(C22,Teilnehmer!$B$5:$F$34,3,FALSE) ->  | E22: =VLOOKUP(C22,Teilnehmer!$B$5:$F$34,4,FALSE) ->  | F22: =VLOOKUP(C22,Teilnehmer!$B$5:$F$34,5,FALSE) ->  | I22: =VLOOKUP(H22,Teilnehmer!$B$5:$F$34,3,FALSE) ->  | J22: =VLOOKUP(H22,Teilnehmer!$B$5:$F$34,4,FALSE) ->  | K22: =VLOOKUP(H22,Teilnehmer!$B$5:$F$34,5,FALSE) ->  | N22: =VLOOKUP(M22,Teilnehmer!$B$5:$F$34,3,FALSE) ->  | O22: =VLOOKUP(M22,Teilnehmer!$B$5:$F$34,4,FALSE) ->  | P22: =VLOOKUP(M22,Teilnehmer!$B$5:$F$34,5,FALSE) -> 
A23: 1 | B23: 19 | D23: =VLOOKUP(C23,Teilnehmer!$B$5:$F$34,3,FALSE) ->  | E23: =VLOOKUP(C23,Teilnehmer!$B$5:$F$34,4,FALSE) ->  | F23: =VLOOKUP(C23,Teilnehmer!$B$5:$F$34,5,FALSE) ->  | I23: =VLOOKUP(H23,Teilnehmer!$B$5:$F$34,3,FALSE) ->  | J23: =VLOOKUP(H23,Teilnehmer!$B$5:$F$34,4,FALSE) ->  | K23: =VLOOKUP(H23,Teilnehmer!$B$5:$F$34,5,FALSE) ->  | N23: =VLOOKUP(M23,Teilnehmer!$B$5:$F$34,3,FALSE) ->  | O23: =VLOOKUP(M23,Teilnehmer!$B$5:$F$34,4,FALSE) ->  | P23: =VLOOKUP(M23,Teilnehmer!$B$5:$F$34,5,FALSE) -> 
A24: 1 | B24: 20 | D24: =VLOOKUP(C24,Teilnehmer!$B$5:$F$34,3,FALSE) ->  | E24: =VLOOKUP(C24,Teilnehmer!$B$5:$F$34,4,FALSE) ->  | F24: =VLOOKUP(C24,Teilnehmer!$B$5:$F$34,5,FALSE) ->  | I24: =VLOOKUP(H24,Teilnehmer!$B$5:$F$34,3,FALSE) ->  | J24: =VLOOKUP(H24,Teilnehmer!$B$5:$F$34,4,FALSE) ->  | K24: =VLOOKUP(H24,Teilnehmer!$B$5:$F$34,5,FALSE) ->  | N24: =VLOOKUP(M24,Teilnehmer!$B$5:$F$34,3,FALSE) ->  | O24: =VLOOKUP(M24,Teilnehmer!$B$5:$F$34,4,FALSE) ->  | P24: =VLOOKUP(M24,Teilnehmer!$B$5:$F$34,5,FALSE) -> 
A25: 1 | B25: 21 | D25: =VLOOKUP(C25,Teilnehmer!$B$5:$F$34,3,FALSE) ->  | E25: =VLOOKUP(C25,Teilnehmer!$B$5:$F$34,4,FALSE) ->  | F25: =VLOOKUP(C25,Teilnehmer!$B$5:$F$34,5,FALSE) ->  | I25: =VLOOKUP(H25,Teilnehmer!$B$5:$F$34,3,FALSE) ->  | J25: =VLOOKUP(H25,Teilnehmer!$B$5:$F$34,4,FALSE) ->  | K25: =VLOOKUP(H25,Teilnehmer!$B$5:$F$34,5,FALSE) ->  | N25: =VLOOKUP(M25,Teilnehmer!$B$5:$F$34,3,FALSE) ->  | O25: =VLOOKUP(M25,Teilnehmer!$B$5:$F$34,4,FALSE) ->  | P25: =VLOOKUP(M25,Teilnehmer!$B$5:$F$34,5,FALSE) -> 
A26: 1 | B26: 22 | D26: =VLOOKUP(C26,Teilnehmer!$B$5:$F$34,3,FALSE) ->  | E26: =VLOOKUP(C26,Teilnehmer!$B$5:$F$34,4,FALSE) ->  | F26: =VLOOKUP(C26,Teilnehmer!$B$5:$F$34,5,FALSE) ->  | I26: =VLOOKUP(H26,Teilnehmer!$B$5:$F$34,3,FALSE) ->  | J26: =VLOOKUP(H26,Teilnehmer!$B$5:$F$34,4,FALSE) ->  | K26: =VLOOKUP(H26,Teilnehmer!$B$5:$F$34,5,FALSE) ->  | N26: =VLOOKUP(M26,Teilnehmer!$B$5:$F$34,3,FALSE) ->  | O26: =VLOOKUP(M26,Teilnehmer!$B$5:$F$34,4,FALSE) ->  | P26: =VLOOKUP(M26,Teilnehmer!$B$5:$F$34,5,FALSE) -> 
A27: 1 | B27: 23 | D27: =VLOOKUP(C27,Teilnehmer!$B$5:$F$34,3,FALSE) ->  | E27: =VLOOKUP(C27,Teilnehmer!$B$5:$F$34,4,FALSE) ->  | F27: =VLOOKUP(C27,Teilnehmer!$B$5:$F$34,5,FALSE) ->  | I27: =VLOOKUP(H27,Teilnehmer!$B$5:$F$34,3,FALSE) ->  | J27: =VLOOKUP(H27,Teilnehmer!$B$5:$F$34,4,FALSE) ->  | K27: =VLOOKUP(H27,Teilnehmer!$B$5:$F$34,5,FALSE) ->  | N27: =VLOOKUP(M27,Teilnehmer!$B$5:$F$34,3,FALSE) ->  | O27: =VLOOKUP(M27,Teilnehmer!$B$5:$F$34,4,FALSE) ->  | P27: =VLOOKUP(M27,Teilnehmer!$B$5:$F$34,5,FALSE) -> 
A28: 1 | B28: 24 | D28: =VLOOKUP(C28,Teilnehmer!$B$5:$F$34,3,FALSE) ->  | E28: =VLOOKUP(C28,Teilnehmer!$B$5:$F$34,4,FALSE) ->  | F28: =VLOOKUP(C28,Teilnehmer!$B$5:$F$34,5,FALSE) ->  | I28: =VLOOKUP(H28,Teilnehmer!$B$5:$F$34,3,FALSE) ->  | J28: =VLOOKUP(H28,Teilnehmer!$B$5:$F$34,4,FALSE) ->  | K28: =VLOOKUP(H28,Teilnehmer!$B$5:$F$34,5,FALSE) ->  | N28: =VLOOKUP(M28,Teilnehmer!$B$5:$F$34,3,FALSE) ->  | O28: =VLOOKUP(M28,Teilnehmer!$B$5:$F$34,4,FALSE) ->  | P28: =VLOOKUP(M28,Teilnehmer!$B$5:$F$34,5,FALSE) -> 
A29: 1 | B29: 25 | D29: =VLOOKUP(C29,Teilnehmer!$B$5:$F$34,3,FALSE) ->  | E29: =VLOOKUP(C29,Teilnehmer!$B$5:$F$34,4,FALSE) ->  | F29: =VLOOKUP(C29,Teilnehmer!$B$5:$F$34,5,FALSE) ->  | I29: =VLOOKUP(H29,Teilnehmer!$B$5:$F$34,3,FALSE) ->  | J29: =VLOOKUP(H29,Teilnehmer!$B$5:$F$34,4,FALSE) ->  | K29: =VLOOKUP(H29,Teilnehmer!$B$5:$F$34,5,FALSE) ->  | N29: =VLOOKUP(M29,Teilnehmer!$B$5:$F$34,3,FALSE) ->  | O29: =VLOOKUP(M29,Teilnehmer!$B$5:$F$34,4,FALSE) ->  | P29: =VLOOKUP(M29,Teilnehmer!$B$5:$F$34,5,FALSE) -> 
A30: 1 | B30: 26 | D30: =VLOOKUP(C30,Teilnehmer!$B$5:$F$34,3,FALSE) ->  | E30: =VLOOKUP(C30,Teilnehmer!$B$5:$F$34,4,FALSE) ->  | F30: =VLOOKUP(C30,Teilnehmer!$B$5:$F$34,5,FALSE) ->  | I30: =VLOOKUP(H30,Teilnehmer!$B$5:$F$34,3,FALSE) ->  | J30: =VLOOKUP(H30,Teilnehmer!$B$5:$F$34,4,FALSE) ->  | K30: =VLOOKUP(H30,Teilnehmer!$B$5:$F$34,5,FALSE) ->  | N30: =VLOOKUP(M30,Teilnehmer!$B$5:$F$34,3,FALSE) ->  | O30: =VLOOKUP(M30,Teilnehmer!$B$5:$F$34,4,FALSE) ->  | P30: =VLOOKUP(M30,Teilnehmer!$B$5:$F$34,5,FALSE) -> 

Sheet Startliste_2
E2: Startliste 2. Runde
A4: Bahn | B4: Start gruppe | C4: Start Nr. | D4: Name | E4: Vorname | F4: Kat | H4: Start Nr. | I4: Name | J4: Vorname | K4: Kat | M4: Start Nr. | N4: Name | O4: Vorname | P4: Kat
A5: 1 | B5: 1 | C5: 402 | D5: =VLOOKUP(C5,Teilnehmer!$B$5:$F$34,3,FALSE) -> Ding | E5: =VLOOKUP(C5,Teilnehmer!$B$5:$F$34,4,FALSE) -> Luis | F5: =VLOOKUP(C5,Teilnehmer!$B$5:$F$34,5,FALSE) -> Sch | H5: 401 | I5: =VLOOKUP(H5,Teilnehmer!$B$5:$F$34,3,FALSE) -> Thomas | J5: =VLOOKUP(H5,Teilnehmer!$B$5:$F$34,4,FALSE) -> Ben | K5: =VLOOKUP(H5,Teilnehmer!$B$5:$F$34,5,FALSE) -> Sch | N5: =VLOOKUP(M5,Teilnehmer!$B$5:$F$34,3,FALSE) ->  | O5: =VLOOKUP(M5,Teilnehmer!$B$5:$F$34,4,FALSE) ->  | P5: =VLOOKUP(M5,Teilnehmer!$B$5:$F$34,5,FALSE) -> 
A6: 2 | B6: 2 | C6: 207 | D6: =VLOOKUP(C6,Teilnehmer!$B$5:$F$34,3,FALSE) -> Kleemann | E6: =VLOOKUP(C6,Teilnehmer!$B$5:$F$34,4,FALSE) -> Kerstin | F6: =VLOOKUP(C6,Teilnehmer!$B$5:$F$34,5,FALSE) -> D | H6: 204 | I6: =VLOOKUP(H6,Teilnehmer!$B$5:$F$34,3,FALSE) -> Bischoff | J6: =VLOOKUP(H6,Teilnehmer!$B$5:$F$34,4,FALSE) -> Nicole | K6: =VLOOKUP(H6,Teilnehmer!$B$5:$F$34,5,FALSE) -> D | N6: =VLOOKUP(M6,Teilnehmer!$B$5:$F$34,3,FALSE) ->  | O6: =VLOOKUP(M6,Teilnehmer!$B$5:$F$34,4,FALSE) ->  | P6: =VLOOKUP(M6,Teilnehmer!$B$5:$F$34,5,FALSE) -> 
A7: 3 | B7: 3 | C7: 201 | D7: =VLOOKUP(C7,Teilnehmer!$B$5:$F$34,3,FALSE) -> Erle | E7: =VLOOKUP(C7,Teilnehmer!$B$5:$F$34,4,FALSE) -> Laura | F7: =VLOOKUP(C7,Teilnehmer!$B$5:$F$34,5,FALSE) -> D | H7: 208 | I7: =VLOOKUP(H7,Teilnehmer!$B$5:$F$34,3,FALSE) -> Ding | J7: =VLOOKUP(H7,Teilnehmer!$B$5:$F$34,4,FALSE) -> Jing | K7: =VLOOKUP(H7,Teilnehmer!$B$5:$F$34,5,FALSE) -> D | M7: 206 | N7: =VLOOKUP(M7,Teilnehmer!$B$5:$F$34,3,FALSE) -> Mohr | O7: =VLOOKUP(M7,Teilnehmer!$B$5:$F$34,4,FALSE) -> Aline | P7: =VLOOKUP(M7,Teilnehmer!$B$5:$F$34,5,FALSE) -> D
A8: 4 | B8: 4 | C8: 202 | D8: =VLOOKUP(C8,Teilnehmer!$B$5:$F$34,3,FALSE) -> Walther | E8: =VLOOKUP(C8,Teilnehmer!$B$5:$F$34,4,FALSE) -> Bianca | F8: =VLOOKUP(C8,Teilnehmer!$B$5:$F$34,5,FALSE) -> D | H8: 205 | I8: =VLOOKUP(H8,Teilnehmer!$B$5:$F$34,3,FALSE) -> Mohr | J8: =VLOOKUP(H8,Teilnehmer!$B$5:$F$34,4,FALSE) -> Colette | K8: =VLOOKUP(H8,Teilnehmer!$B$5:$F$34,5,FALSE) -> D | M8: 203 | N8: =VLOOKUP(M8,Teilnehmer!$B$5:$F$34,3,FALSE) -> Bien | O8: =VLOOKUP(M8,Teilnehmer!$B$5:$F$34,4,FALSE) -> Angelika | P8: =VLOOKUP(M8,Teilnehmer!$B$5:$F$34,5,FALSE) -> D
A9: 5 | B9: 5 | C9: 116 | D9: =VLOOKUP(C9,Teilnehmer!$B$5:$F$34,3,FALSE) -> van Ryßen | E9: =VLOOKUP(C9,Teilnehmer!$B$5:$F$34,4,FALSE) -> Artur | F9: =VLOOKUP(C9,Teilnehmer!$B$5:$F$34,5,FALSE) -> H | H9: 115 | I9: =VLOOKUP(H9,Teilnehmer!$B$5:$F$34,3,FALSE) -> Günther | J9: =VLOOKUP(H9,Teilnehmer!$B$5:$F$34,4,FALSE) -> Felix | K9: =VLOOKUP(H9,Teilnehmer!$B$5:$F$34,5,FALSE) -> H | N9: =VLOOKUP(M9,Teilnehmer!$B$5:$F$34,3,FALSE) ->  | O9: =VLOOKUP(M9,Teilnehmer!$B$5:$F$34,4,FALSE) ->  | P9: =VLOOKUP(M9,Teilnehmer!$B$5:$F$34,5,FALSE) -> 
A10: 6 | B10: 6 | C10: 109 | D10: =VLOOKUP(C10,Teilnehmer!$B$5:$F$34,3,FALSE) -> Weber | E10: =VLOOKUP(C10,Teilnehmer!$B$5:$F$34,4,FALSE) -> Frank | F10: =VLOOKUP(C10,Teilnehmer!$B$5:$F$34,5,FALSE) -> H | H10: 108 | I10: =VLOOKUP(H10,Teilnehmer!$B$5:$F$34,3,FALSE) -> Hudert | J10: =VLOOKUP(H10,Teilnehmer!$B$5:$F$34,4,FALSE) -> Leon | K10: =VLOOKUP(H10,Teilnehmer!$B$5:$F$34,5,FALSE) -> H | N10: =VLOOKUP(M10,Teilnehmer!$B$5:$F$34,3,FALSE) ->  | O10: =VLOOKUP(M10,Teilnehmer!$B$5:$F$34,4,FALSE) ->  | P10: =VLOOKUP(M10,Teilnehmer!$B$5:$F$34,5,FALSE) -> 
A11: 7 | B11: 7 | C11: 104 | D11: =VLOOKUP(C11,Teilnehmer!$B$5:$F$34,3,FALSE) -> Hudert | E11: =VLOOKUP(C11,Teilnehmer!$B$5:$F$34,4,FALSE) -> Marcus | F11: =VLOOKUP(C11,Teilnehmer!$B$5:$F$34,5,FALSE) -> H | H11: 110 | I11: =VLOOKUP(H11,Teilnehmer!$B$5:$F$34,3,FALSE) -> Teischad | J11: =VLOOKUP(H11,Teilnehmer!$B$5:$F$34,4,FALSE) -> Stefan | K11: =VLOOKUP(H11,Teilnehmer!$B$5:$F$34,5,FALSE) -> H | M11: 106 | N11: =VLOOKUP(M11,Teilnehmer!$B$5:$F$34,3,FALSE) -> Thomas | O11: =VLOOKUP(M11,Teilnehmer!$B$5:$F$34,4,FALSE) -> Stefan | P11: =VLOOKUP(M11,Teilnehmer!$B$5:$F$34,5,FALSE) -> H
A12: 8 | B12: 8 | C12: 102 | D12: =VLOOKUP(C12,Teilnehmer!$B$5:$F$34,3,FALSE) -> Bien | E12: =VLOOKUP(C12,Teilnehmer!$B$5:$F$34,4,FALSE) -> Martin | F12: =VLOOKUP(C12,Teilnehmer!$B$5:$F$34,5,FALSE) -> H | H12: 103 | I12: =VLOOKUP(H12,Teilnehmer!$B$5:$F$34,3,FALSE) -> Lotz | J12: =VLOOKUP(H12,Teilnehmer!$B$5:$F$34,4,FALSE) -> Peter | K12: =VLOOKUP(H12,Teilnehmer!$B$5:$F$34,5,FALSE) -> H | M12: 113 | N12: =VLOOKUP(M12,Teilnehmer!$B$5:$F$34,3,FALSE) -> Kleemann | O12: =VLOOKUP(M12,Teilnehmer!$B$5:$F$34,4,FALSE) -> Petrick | P12: =VLOOKUP(M12,Teilnehmer!$B$5:$F$34,5,FALSE) -> H
A13: 9 | B13: 9 | C13: 111 | D13: =VLOOKUP(C13,Teilnehmer!$B$5:$F$34,3,FALSE) -> Geisler | E13: =VLOOKUP(C13,Teilnehmer!$B$5:$F$34,4,FALSE) -> Knut | F13: =VLOOKUP(C13,Teilnehmer!$B$5:$F$34,5,FALSE) -> H | H13: 112 | I13: =VLOOKUP(H13,Teilnehmer!$B$5:$F$34,3,FALSE) -> Reimann | J13: =VLOOKUP(H13,Teilnehmer!$B$5:$F$34,4,FALSE) -> Thomas | K13: =VLOOKUP(H13,Teilnehmer!$B$5:$F$34,5,FALSE) -> H | M13: 114 | N13: =VLOOKUP(M13,Teilnehmer!$B$5:$F$34,3,FALSE) -> Ding | O13: =VLOOKUP(M13,Teilnehmer!$B$5:$F$34,4,FALSE) -> Gary | P13: =VLOOKUP(M13,Teilnehmer!$B$5:$F$34,5,FALSE) -> H
A14: 10 | B14: 10 | C14: 105 | D14: =VLOOKUP(C14,Teilnehmer!$B$5:$F$34,3,FALSE) -> Bischoff | E14: =VLOOKUP(C14,Teilnehmer!$B$5:$F$34,4,FALSE) -> Andreas | F14: =VLOOKUP(C14,Teilnehmer!$B$5:$F$34,5,FALSE) -> H | H14: 101 | I14: =VLOOKUP(H14,Teilnehmer!$B$5:$F$34,3,FALSE) -> Philippus | J14: =VLOOKUP(H14,Teilnehmer!$B$5:$F$34,4,FALSE) -> Achim | K14: =VLOOKUP(H14,Teilnehmer!$B$5:$F$34,5,FALSE) -> H | M14: 107 | N14: =VLOOKUP(M14,Teilnehmer!$B$5:$F$34,3,FALSE) -> Kremer | O14: =VLOOKUP(M14,Teilnehmer!$B$5:$F$34,4,FALSE) -> Manfred | P14: =VLOOKUP(M14,Teilnehmer!$B$5:$F$34,5,FALSE) -> H
A15: 11 | B15: 11 | D15: =VLOOKUP(C15,Teilnehmer!$B$5:$F$34,3,FALSE) ->  | E15: =VLOOKUP(C15,Teilnehmer!$B$5:$F$34,4,FALSE) ->  | F15: =VLOOKUP(C15,Teilnehmer!$B$5:$F$34,5,FALSE) ->  | I15: =VLOOKUP(H15,Teilnehmer!$B$5:$F$34,3,FALSE) ->  | J15: =VLOOKUP(H15,Teilnehmer!$B$5:$F$34,4,FALSE) ->  | K15: =VLOOKUP(H15,Teilnehmer!$B$5:$F$34,5,FALSE) ->  | N15: =VLOOKUP(M15,Teilnehmer!$B$5:$F$34,3,FALSE) ->  | O15: =VLOOKUP(M15,Teilnehmer!$B$5:$F$34,4,FALSE) ->  | P15: =VLOOKUP(M15,Teilnehmer!$B$5:$F$34,5,FALSE) -> 
A16: 12 | B16: 12 | D16: =VLOOKUP(C16,Teilnehmer!$B$5:$F$34,3,FALSE) ->  | E16: =VLOOKUP(C16,Teilnehmer!$B$5:$F$34,4,FALSE) ->  | F16: =VLOOKUP(C16,Teilnehmer!$B$5:$F$34,5,FALSE) ->  | I16: =VLOOKUP(H16,Teilnehmer!$B$5:$F$34,3,FALSE) ->  | J16: =VLOOKUP(H16,Teilnehmer!$B$5:$F$34,4,FALSE) ->  | K16: =VLOOKUP(H16,Teilnehmer!$B$5:$F$34,5,FALSE) ->  | N16: =VLOOKUP(M16,Teilnehmer!$B$5:$F$34,3,FALSE) ->  | O16: =VLOOKUP(M16,Teilnehmer!$B$5:$F$34,4,FALSE) ->  | P16: =VLOOKUP(M16,Teilnehmer!$B$5:$F$34,5,FALSE) -> 
A17: 13 | B17: 13 | D17: =VLOOKUP(C17,Teilnehmer!$B$5:$F$34,3,FALSE) ->  | E17: =VLOOKUP(C17,Teilnehmer!$B$5:$F$34,4,FALSE) ->  | F17: =VLOOKUP(C17,Teilnehmer!$B$5:$F$34,5,FALSE) ->  | I17: =VLOOKUP(H17,Teilnehmer!$B$5:$F$34,3,FALSE) ->  | J17: =VLOOKUP(H17,Teilnehmer!$B$5:$F$34,4,FALSE) ->  | K17: =VLOOKUP(H17,Teilnehmer!$B$5:$F$34,5,FALSE) ->  | N17: =VLOOKUP(M17,Teilnehmer!$B$5:$F$34,3,FALSE) ->  | O17: =VLOOKUP(M17,Teilnehmer!$B$5:$F$34,4,FALSE) ->  | P17: =VLOOKUP(M17,Teilnehmer!$B$5:$F$34,5,FALSE) -> 
A18: 14 | B18: 14 | D18: =VLOOKUP(C18,Teilnehmer!$B$5:$F$34,3,FALSE) ->  | E18: =VLOOKUP(C18,Teilnehmer!$B$5:$F$34,4,FALSE) ->  | F18: =VLOOKUP(C18,Teilnehmer!$B$5:$F$34,5,FALSE) ->  | I18: =VLOOKUP(H18,Teilnehmer!$B$5:$F$34,3,FALSE) ->  | J18: =VLOOKUP(H18,Teilnehmer!$B$5:$F$34,4,FALSE) ->  | K18: =VLOOKUP(H18,Teilnehmer!$B$5:$F$34,5,FALSE) ->  | N18: =VLOOKUP(M18,Teilnehmer!$B$5:$F$34,3,FALSE) ->  | O18: =VLOOKUP(M18,Teilnehmer!$B$5:$F$34,4,FALSE) ->  | P18: =VLOOKUP(M18,Teilnehmer!$B$5:$F$34,5,FALSE) -> 
A19: 15 | B19: 15 | D19: =VLOOKUP(C19,Teilnehmer!$B$5:$F$34,3,FALSE) ->  | E19: =VLOOKUP(C19,Teilnehmer!$B$5:$F$34,4,FALSE) ->  | F19: =VLOOKUP(C19,Teilnehmer!$B$5:$F$34,5,FALSE) ->  | I19: =VLOOKUP(H19,Teilnehmer!$B$5:$F$34,3,FALSE) ->  | J19: =VLOOKUP(H19,Teilnehmer!$B$5:$F$34,4,FALSE) ->  | K19: =VLOOKUP(H19,Teilnehmer!$B$5:$F$34,5,FALSE) ->  | N19: =VLOOKUP(M19,Teilnehmer!$B$5:$F$34,3,FALSE) ->  | O19: =VLOOKUP(M19,Teilnehmer!$B$5:$F$34,4,FALSE) ->  | P19: =VLOOKUP(M19,Teilnehmer!$B$5:$F$34,5,FALSE) -> 
A20: 16 | B20: 16 | D20: =VLOOKUP(C20,Teilnehmer!$B$5:$F$34,3,FALSE) ->  | E20: =VLOOKUP(C20,Teilnehmer!$B$5:$F$34,4,FALSE) ->  | F20: =VLOOKUP(C20,Teilnehmer!$B$5:$F$34,5,FALSE) ->  | I20: =VLOOKUP(H20,Teilnehmer!$B$5:$F$34,3,FALSE) ->  | J20: =VLOOKUP(H20,Teilnehmer!$B$5:$F$34,4,FALSE) ->  | K20: =VLOOKUP(H20,Teilnehmer!$B$5:$F$34,5,FALSE) ->  | N20: =VLOOKUP(M20,Teilnehmer!$B$5:$F$34,3,FALSE) ->  | O20: =VLOOKUP(M20,Teilnehmer!$B$5:$F$34,4,FALSE) ->  | P20: =VLOOKUP(M20,Teilnehmer!$B$5:$F$34,5,FALSE) -> 
A21: 17 | B21: 17 | D21: =VLOOKUP(C21,Teilnehmer!$B$5:$F$34,3,FALSE) ->  | E21: =VLOOKUP(C21,Teilnehmer!$B$5:$F$34,4,FALSE) ->  | F21: =VLOOKUP(C21,Teilnehmer!$B$5:$F$34,5,FALSE) ->  | I21: =VLOOKUP(H21,Teilnehmer!$B$5:$F$34,3,FALSE) ->  | J21: =VLOOKUP(H21,Teilnehmer!$B$5:$F$34,4,FALSE) ->  | K21: =VLOOKUP(H21,Teilnehmer!$B$5:$F$34,5,FALSE) ->  | N21: =VLOOKUP(M21,Teilnehmer!$B$5:$F$34,3,FALSE) ->  | O21: =VLOOKUP(M21,Teilnehmer!$B$5:$F$34,4,FALSE) ->  | P21: =VLOOKUP(M21,Teilnehmer!$B$5:$F$34,5,FALSE) -> 
A22: 18 | B22: 18 | D22: =VLOOKUP(C22,Teilnehmer!$B$5:$F$34,3,FALSE) ->  | E22: =VLOOKUP(C22,Teilnehmer!$B$5:$F$34,4,FALSE) ->  | F22: =VLOOKUP(C22,Teilnehmer!$B$5:$F$34,5,FALSE) ->  | I22: =VLOOKUP(H22,Teilnehmer!$B$5:$F$34,3,FALSE) ->  | J22: =VLOOKUP(H22,Teilnehmer!$B$5:$F$34,4,FALSE) ->  | K22: =VLOOKUP(H22,Teilnehmer!$B$5:$F$34,5,FALSE) ->  | N22: =VLOOKUP(M22,Teilnehmer!$B$5:$F$34,3,FALSE) ->  | O22: =VLOOKUP(M22,Teilnehmer!$B$5:$F$34,4,FALSE) ->  | P22: =VLOOKUP(M22,Teilnehmer!$B$5:$F$34,5,FALSE) -> 
A23: 1 | B23: 19 | D23: =VLOOKUP(C23,Teilnehmer!$B$5:$F$34,3,FALSE) ->  | E23: =VLOOKUP(C23,Teilnehmer!$B$5:$F$34,4,FALSE) ->  | F23: =VLOOKUP(C23,Teilnehmer!$B$5:$F$34,5,FALSE) ->  | I23: =VLOOKUP(H23,Teilnehmer!$B$5:$F$34,3,FALSE) ->  | J23: =VLOOKUP(H23,Teilnehmer!$B$5:$F$34,4,FALSE) ->  | K23: =VLOOKUP(H23,Teilnehmer!$B$5:$F$34,5,FALSE) ->  | N23: =VLOOKUP(M23,Teilnehmer!$B$5:$F$34,3,FALSE) ->  | O23: =VLOOKUP(M23,Teilnehmer!$B$5:$F$34,4,FALSE) ->  | P23: =VLOOKUP(M23,Teilnehmer!$B$5:$F$34,5,FALSE) -> 
A24: 1 | B24: 20 | D24: =VLOOKUP(C24,Teilnehmer!$B$5:$F$34,3,FALSE) ->  | E24: =VLOOKUP(C24,Teilnehmer!$B$5:$F$34,4,FALSE) ->  | F24: =VLOOKUP(C24,Teilnehmer!$B$5:$F$34,5,FALSE) ->  | I24: =VLOOKUP(H24,Teilnehmer!$B$5:$F$34,3,FALSE) ->  | J24: =VLOOKUP(H24,Teilnehmer!$B$5:$F$34,4,FALSE) ->  | K24: =VLOOKUP(H24,Teilnehmer!$B$5:$F$34,5,FALSE) ->  | N24: =VLOOKUP(M24,Teilnehmer!$B$5:$F$34,3,FALSE) ->  | O24: =VLOOKUP(M24,Teilnehmer!$B$5:$F$34,4,FALSE) ->  | P24: =VLOOKUP(M24,Teilnehmer!$B$5:$F$34,5,FALSE) -> 
A25: 1 | B25: 21 | D25: =VLOOKUP(C25,Teilnehmer!$B$5:$F$34,3,FALSE) ->  | E25: =VLOOKUP(C25,Teilnehmer!$B$5:$F$34,4,FALSE) ->  | F25: =VLOOKUP(C25,Teilnehmer!$B$5:$F$34,5,FALSE) ->  | I25: =VLOOKUP(H25,Teilnehmer!$B$5:$F$34,3,FALSE) ->  | J25: =VLOOKUP(H25,Teilnehmer!$B$5:$F$34,4,FALSE) ->  | K25: =VLOOKUP(H25,Teilnehmer!$B$5:$F$34,5,FALSE) ->  | N25: =VLOOKUP(M25,Teilnehmer!$B$5:$F$34,3,FALSE) ->  | O25: =VLOOKUP(M25,Teilnehmer!$B$5:$F$34,4,FALSE) ->  | P25: =VLOOKUP(M25,Teilnehmer!$B$5:$F$34,5,FALSE) -> 
A26: 1 | B26: 22 | D26: =VLOOKUP(C26,Teilnehmer!$B$5:$F$34,3,FALSE) ->  | E26: =VLOOKUP(C26,Teilnehmer!$B$5:$F$34,4,FALSE) ->  | F26: =VLOOKUP(C26,Teilnehmer!$B$5:$F$34,5,FALSE) ->  | I26: =VLOOKUP(H26,Teilnehmer!$B$5:$F$34,3,FALSE) ->  | J26: =VLOOKUP(H26,Teilnehmer!$B$5:$F$34,4,FALSE) ->  | K26: =VLOOKUP(H26,Teilnehmer!$B$5:$F$34,5,FALSE) ->  | N26: =VLOOKUP(M26,Teilnehmer!$B$5:$F$34,3,FALSE) ->  | O26: =VLOOKUP(M26,Teilnehmer!$B$5:$F$34,4,FALSE) ->  | P26: =VLOOKUP(M26,Teilnehmer!$B$5:$F$34,5,FALSE) -> 
A27: 1 | B27: 23 | D27: =VLOOKUP(C27,Teilnehmer!$B$5:$F$34,3,FALSE) ->  | E27: =VLOOKUP(C27,Teilnehmer!$B$5:$F$34,4,FALSE) ->  | F27: =VLOOKUP(C27,Teilnehmer!$B$5:$F$34,5,FALSE) ->  | I27: =VLOOKUP(H27,Teilnehmer!$B$5:$F$34,3,FALSE) ->  | J27: =VLOOKUP(H27,Teilnehmer!$B$5:$F$34,4,FALSE) ->  | K27: =VLOOKUP(H27,Teilnehmer!$B$5:$F$34,5,FALSE) ->  | N27: =VLOOKUP(M27,Teilnehmer!$B$5:$F$34,3,FALSE) ->  | O27: =VLOOKUP(M27,Teilnehmer!$B$5:$F$34,4,FALSE) ->  | P27: =VLOOKUP(M27,Teilnehmer!$B$5:$F$34,5,FALSE) -> 
A28: 1 | B28: 24 | D28: =VLOOKUP(C28,Teilnehmer!$B$5:$F$34,3,FALSE) ->  | E28: =VLOOKUP(C28,Teilnehmer!$B$5:$F$34,4,FALSE) ->  | F28: =VLOOKUP(C28,Teilnehmer!$B$5:$F$34,5,FALSE) ->  | I28: =VLOOKUP(H28,Teilnehmer!$B$5:$F$34,3,FALSE) ->  | J28: =VLOOKUP(H28,Teilnehmer!$B$5:$F$34,4,FALSE) ->  | K28: =VLOOKUP(H28,Teilnehmer!$B$5:$F$34,5,FALSE) ->  | N28: =VLOOKUP(M28,Teilnehmer!$B$5:$F$34,3,FALSE) ->  | O28: =VLOOKUP(M28,Teilnehmer!$B$5:$F$34,4,FALSE) ->  | P28: =VLOOKUP(M28,Teilnehmer!$B$5:$F$34,5,FALSE) -> 
A29: 1 | B29: 25 | D29: =VLOOKUP(C29,Teilnehmer!$B$5:$F$34,3,FALSE) ->  | E29: =VLOOKUP(C29,Teilnehmer!$B$5:$F$34,4,FALSE) ->  | F29: =VLOOKUP(C29,Teilnehmer!$B$5:$F$34,5,FALSE) ->  | I29: =VLOOKUP(H29,Teilnehmer!$B$5:$F$34,3,FALSE) ->  | J29: =VLOOKUP(H29,Teilnehmer!$B$5:$F$34,4,FALSE) ->  | K29: =VLOOKUP(H29,Teilnehmer!$B$5:$F$34,5,FALSE) ->  | N29: =VLOOKUP(M29,Teilnehmer!$B$5:$F$34,3,FALSE) ->  | O29: =VLOOKUP(M29,Teilnehmer!$B$5:$F$34,4,FALSE) ->  | P29: =VLOOKUP(M29,Teilnehmer!$B$5:$F$34,5,FALSE) -> 
A30: 1 | B30: 26 | D30: =VLOOKUP(C30,Teilnehmer!$B$5:$F$34,3,FALSE) ->  | E30: =VLOOKUP(C30,Teilnehmer!$B$5:$F$34,4,FALSE) ->  | F30: =VLOOKUP(C30,Teilnehmer!$B$5:$F$34,5,FALSE) ->  | I30: =VLOOKUP(H30,Teilnehmer!$B$5:$F$34,3,FALSE) ->  | J30: =VLOOKUP(H30,Teilnehmer!$B$5:$F$34,4,FALSE) ->  | K30: =VLOOKUP(H30,Teilnehmer!$B$5:$F$34,5,FALSE) ->  | N30: =VLOOKUP(M30,Teilnehmer!$B$5:$F$34,3,FALSE) ->  | O30: =VLOOKUP(M30,Teilnehmer!$B$5:$F$34,4,FALSE) ->  | P30: =VLOOKUP(M30,Teilnehmer!$B$5:$F$34,5,FALSE) -> 

Sheet Protokoll
E1: 105 | F1: << hier Startnummer eintragen
E2: 109
A3: =E1 -> 105 | B3: =VLOOKUP($E$1,Teilnehmer!$B$5:$F$46,5,FALSE) -> H | C3: =CONCATENATE(VLOOKUP($E$1,Teilnehmer!$B$5:$F$46,3,FALSE),", ",VLOOKUP($E$1,Teilnehmer!$B$5:$F$46,4,FALSE)) -> Bischoff, Andreas
A6: Bahn | B6: Runde 1 | C6: Runde 2 | D6: Stechen
A7: 1 | E7: 1xx | F7: Herren
A8: 2 | E8: 2xx | F8: Damen
A9: 3 | E9: 3xx | F9: Jugend
A10: 4 | E10: 4xx | F10: Schüler
A11: 5
A12: 6
A13: 7
A14: 8
A15: 9
A16: 10
A17: 11
A18: 12
A19: 13
A20: 14
A21: 15
A22: 16
A23: 17
A24: 18
A25: Summe
A26: Unterschr.
A28: Total

Sheet Urkundendruck
E16: Startnummer: | F16: 105 | G16: =INT(F16/100)*100 -> 100
B18: =CONCATENATE(VLOOKUP($F$16,Teilnehmer!$B$4:$F$34,4,FALSE)," ",VLOOKUP($F$16,Teilnehmer!$B$4:$F$34,3,FALSE)) -> Andreas Bischoff
B20: hat beim Minigolf Jedermannturnier
B21: des BGSV Bad Homburg den
B23: =CONCATENATE(VLOOKUP($F$16,Teilnehmer!$B$4:$F$34,2,FALSE),". Platz") -> 5. Platz
B25: =CONCATENATE("in der Kategorie ",(VLOOKUP($G$16,Teilnehmer!$B$4:$F$34,5,FALSE))) -> 
B26: =CONCATENATE("mit ",VLOOKUP($F$16,Teilnehmer!$B$4:$H$34,12,FALSE)," Schlägen aus 2 Runden erreicht.") -> 
